Cogmind - Beta 14 @@@ ROGUE MODE // 2024.11.04 @ 00:23:52 Player: KURIIRI Result: Destroyed by G-34 Mercenary with Small Laser Performance ------------- Evolutions (0) 0 Regions Visited (2) 400 Robots Destroyed (30) 150 Value Destroyed (659) 659 Prototype IDs (2) 40 Alien Tech Used (0) 0 Bonus (0) 0 TOTAL SCORE: 1249 Bonus ------- None Cogmind --------- Core Integrity 0/250 Matter 266/300 Energy 84/100 System Corruption 0% Temperature Hot (216) Movement Treading (240) Ox1 Location -10/Mines Parts ------- > --- POWER (1) -------- (None) > --- PROPULSION (2) --- Light Treads Light Treads > --- UTILITY (2) ------ Large Storage Unit > --- WEAPON (2) ------- Particle Gun Heavy Battle Rifle > --- INVENTORY (15) --- Light Ion Engine Light Ion Engine Light Nuclear Core Heat Sink Terrain Scanner Seismic Detector Particle Gun Assault Rifle Assault Rifle Assault Rifle Light Assault Rifle Light Assault Rifle Datajack Hammer Peak State ------------ > --- POWER ------------ Ion Engine > --- PROPULSION ------- Light Treads Compact Wheel > --- UTILITY ---------- Large Storage Unit Targeting Computer > --- WEAPON ----------- Particle Gun Heavy Battle Rifle > --- INVENTORY -------- Light Ion Engine Light Ion Engine Light Nuclear Core Light Treads Heat Sink Terrain Scanner Seismic Detector Small Laser Assault Rifle Assault Rifle Assault Rifle Light Assault Rifle Light Assault Rifle Datajack Mining Laser [Rating: 12] Favorites ----------- Power Light Ion Engine Engine Light Ion Engine Propulsion Light Treads Treads Light Treads Wheel Compact Wheel Utility Large Storage Unit Device Terrain Scanner Storage Large Storage Unit Processor Targeting Computer Weapon Medium Laser Energy Gun Medium Laser Ballistic Gun Light Assault Rifle Special Melee Weapon Datajack Build | -11 -10 -10 ------- Run | Yrd Mat Min Slots Evolved . | . . . Power . | . . . Propulsion . | . . . Utility . | . . . Weapon . | . . . Parts Attached 26 | 6 18 2 Power 2 | 1 1 . Engine 2 | 1 1 . Core . | . . . Reactor . | . . . Propulsion 8 | 2 5 1 Treads 6 | 2 3 1 Leg . | . . . Wheel 2 | . 2 . Hover . | . . . Flight . | . . . Utility 4 | 1 3 . Device 1 | . 1 . Storage 2 | 1 1 . Processor 1 | . 1 . Hackware . | . . . Protection . | . . . Artifact . | . . . Weapon 12 | 2 9 1 Energy Gun 3 | 1 2 . Energy Cannon . | . . . Ballistic Gun 7 | 1 5 1 Ballistic Cannon . | . . . Launcher . | . . . Special Weapon . | . . . Impact Weapon . | . . . Slashing Weapon . | . . . Piercing Weapon . | . . . Special Melee Weapon 2 | . 2 . Unidentified Prototypes . | . . . Parts Lost 8 | . 5 3 Power 2 | . 1 1 Propulsion 3 | . 2 1 Utility 1 | . . 1 Weapon 2 | . 2 . Highest Loss Streak 3 | . 3 2 To Critical Strikes . | . . . Average Slot Usage (%) 94 | . 93 96 Engine 13 | . 13 11 Treads 21 | . 23 14 Wheel 5 | . 4 13 Device 1 | . 1 . Storage 14 | . 14 14 Processor 8 | . 7 13 Energy Gun 16 | . 17 14 Ballistic Gun 10 | . 9 14 Peak Build Rating 12 | 6 9 12 Average Rating 7 | 3 7 11 On Entrance 5 | . 6 9 Naked Turns . | . . . Heaviest Build 32 | 11 31 32 Greatest Support 40 | 40 40 16 Greatest Overweight (x) 1 | . 1 1 Average Overweight (x) . | . . 1 Largest Inventory Capacity 15 | 8 15 15 Average Capacity 13 | 6 13 15 Most Carried 15 | 2 14 15 Average Carried 7 | 1 6 14 Final Capacity 15 | 8 15 15 Final Carried 14 | 2 14 14 Class Distribution -------------------- 61% | Mutant 38% | Scavenger-Mutant Dominant Class ---------------- Mutant | -10/Materials Scavenger-Mutant | -10/Mines Resources | -11 -10 -10 ----------- Run | Yrd Mat Min Matter Collected 515 | 208 270 37 Remotely . | . . . Salvage Created 937 | . 735 202 Parts 58 | . 47 11 Haulers Intercepted 2 | . 2 . Recyclers Shooed 1 | . . 1 Parts Field Recycled . | . . . Retrieved Matter . | . . . Parts Self-Destructed . | . . . Prevented . | . . . Kills | -11 -10 -10 ------- Run | Yrd Mat Min Combat Hostiles Destroyed 22 | . 16 6 Guns 22 | . 16 6 Classes Destroyed 6 | . 6 . Worker 1 | . 1 . Hauler 2 | . 2 . Recycler 2 | . 1 1 Watcher 3 | . 3 . Swarmer 9 | . 6 3 Grunt 13 | . 10 3 Best Kill Streak 5 | . 5 3 Combat Bots Only 5 | . 5 3 Max Kills in Single Turn 1 | . 1 1 Gunslinging . | . . . Exploded . | . . . Melee . | . . . Uniques/NPCs Destroyed . | . . . Combat | -11 -10 -10 -------- Run | Yrd Mat Min Hostile Shots Fired 153 | . 112 41 Missed 40 | . 28 12 Damage Taken 1199 | . 894 305 Core 257 | . 174 83 Absorbed by Shields . | . . . Core Remaining (%) 100 | 100 . . Volleys Fired 97 | . 75 22 Largest 2 | . 2 2 Hottest 105 | . 105 98 Shots Fired 185 | . 141 44 Gun 185 | . 141 44 Cannon . | . . . Launcher . | . . . Special . | . . . Kinetic 80 | . 58 22 Thermal 105 | . 83 22 Explosive . | . . . Electromagnetic . | . . . Robot Hit Streak 10 | . 10 8 Robot Miss Streak 6 | . 4 6 Penetration Max . | . . . Secondary Targets 3 | . 2 1 Max Gunslinging Chain 1 | . 1 1 Shots Hit Robots 121 | . 100 21 Core Hits 54 | . 43 11 Critical Kills . | . . . Critical Parts Destroyed . | . . . Critical Strikes 2 | . 2 . Burn 2 | . 2 . Melee Attacks . | . . . Impact . | . . . Slashing . | . . . Piercing . | . . . Sneak Attacks . | . . . Combat Hostiles . | . . . Follow-up Attacks . | . . . Damage Inflicted 1550 | . 1105 445 Guns 1550 | . 1105 445 Cannons . | . . . Explosions . | . . . Melee . | . . . Ramming . | . . . Kinetic 612 | . 350 262 Thermal 938 | . 755 183 Explosive . | . . . Electromagnetic . | . . . Impact . | . . . Slashing . | . . . Piercing . | . . . Highest Corruption . | . . . Average Corruption . | . . . Corruption Purged . | . . . Corruption Blocked . | . . . Overload Shots . | . . . Overflow Damage . | . . . Projectiles . | . . . Explosions . | . . . Melee . | . . . Knockbacks . | . . . Impact . | . . . Kinetic . | . . . Secondary . | . . . Self-Inflicted Damage . | . . . Shots . | . . . Rammed . | . . . Targets Rammed . | . . . Kicked . | . . . Crushed . | . . . Highest Temperature 324 | . 320 324 Average Temperature 93 | . 83 122 Received Heat Transfer 480 | . 348 132 Effects 5 | . 5 . Energy Bleed 2 | . 2 . Interference 3 | . 3 . Siege Activations . | . . . Robots Corrupted . | . . . Combat Hostiles . | . . . Parts Fried . | . . . Impact Corruptions . | . . . Robots Melted . | . . . Combat Hostiles . | . . . Parts Melted 5 | . 5 . Heat Transferred 2558 | . 2114 444 Parts Sabotaged . | . . . Parts Stolen . | . . . Parts Stripped . | . . . Power Chain Reactions . | . . . Alert | -11 -10 -10 ------- Run | Yrd Mat Min Peak Influence 219 | . 219 203 Initial 43 | . . 43 Average 67 | . 64 100 Maximum Alert Level 1 | . 1 1 Low Security (%) 98 | 100 97 99 Level 1 1 | . 2 . Level 2 . | . . . Level 3 . | . . . Level 4 . | . . . Level 5 . | . . . High Security . | . . . Max Security . | . . . Squads Dispatched 4 | . 4 . Investigation 4 | . 4 . Extermination . | . . . Reinforcement . | . . . Assault . | . . . Garrison . | . . . Intercept . | . . . Searches Triggered . | . . . Construction Impeded . | . . . Haulers Reinforced . | . . . Active Scanning Responses . | . . . Cargo Convoy Interrupts . | . . . Stealth | -11 -10 -10 --------- Run | Yrd Mat Min Distress Signals 2 | . 2 . Communications Jammed . | . . . Distress Signals . | . . . Times Spotted 29 | . 22 7 Peak Tracking Total 6 | . 6 3 Tactical Retreats . | . . . Traps | -11 -10 -10 ------- Run | Yrd Mat Min Traps Triggered 1 | . 1 . Indirectly . | . . . Trap Hack Attempts 72 | . 72 . Triggered . | . . . Disarmed . | . . . Reprogrammed 5 | . 5 . Reused 1 | . 1 . Traps Extracted . | . . . Installed . | . . . Triggered 1 | . 1 . Machines | -11 -10 -10 ---------- Run | Yrd Mat Min Machines Disabled 1 | . . 1 Max in Single Turn 1 | . . 1 Machines Repaired . | . . . Machines Dismantled . | . . . Machines Sabotaged . | . . . Overloaded Fab Kills . | . . . Hacking | -11 -10 -10 --------- Run | Yrd Mat Min Machines Accessed 10 | . 10 . Terminals 8 | . 8 . Fabricators . | . . . Repair Stations . | . . . Recycling Units 2 | . 2 . Scanalyzers . | . . . Garrison Access . | . . . Total Hacks 25 | . 25 . Successful 14 | . 14 . Failed 10 | . 10 . Catastrophic 2 | . 2 . Database Lockouts 1 | . 1 . Manual 16 | . 16 . Terminals 21 | . 21 . Fabricators . | . . . Repair Stations . | . . . Recycling Units 4 | . 4 . Scanalyzers . | . . . Garrison Access . | . . . Terminal Hacks 7 | . 7 . Robot Analysis 3 | . 3 . Prototype ID Bank 1 | . 1 . Terminal Index 1 | . 1 . Alert Level 1 | . 1 . Unreport Threat 1 | . 1 . Fabricator Hacks . | . . . Repair Station Hacks . | . . . Recycling Unit Hacks . | . . . Scanalyzer . | . . . Garrison Access Hacks . | . . . Unauthorized Hacks 7 | . 7 . Terminals 3 | . 3 . Botnet 3 | . 3 . Fabricators . | . . . Repair Stations . | . . . Recycling Units 4 | . 4 . Reject 1 | . 1 . Mask 1 | . 1 . Tunnel 2 | . 2 . Scanalyzers . | . . . Garrison Access . | . . . Data Cores Recovered . | . . . Used . | . . . Hacking Detections 6 | . 6 . Full Trace Events 3 | . 3 . Feedback Events . | . . . Feedback Blocked . | . . . Robot Schematics Acquired . | . . . Robots Built . | . . . Authchips . | . . . Time . | . . . Total Robot Build Rating . | . . . Part Schematics Acquired . | . . . Parts Built . | . . . Authchips . | . . . Time . | . . . Total Part Build Rating . | . . . Parts Repaired . | . . . Time . | . . . Parts Recycled . | . . . Recycled Matter . | . . . Retrieved Matter . | . . . Retrieved Components . | . . . Parts Scanalyzed . | . . . Part Schematics Acquired . | . . . Parts Damaged . | . . . Bothacking | -11 -10 -10 ------------ Run | Yrd Mat Min Used RIF Installer . | . . . Robots Hacked . | . . . Non-combat . | . . . Combat . | . . . Robot Hacks Applied . | . . . Relay Couplers Released . | . . . Fabnet Peak Effective % . | . . . Robots Rewired . | . . . Allies Hacked . | . . . Hacks Repelled . | . . . Allies | -11 -10 -10 -------- Run | Yrd Mat Min Total Allies . | . . . Largest Group . | . . . Highest-Rated Group . | . . . Highest-Rated Ally . | . . . Total Orders . | . . . Ally Attacks . | . . . Total Damage . | . . . Kills . | . . . Allies Corrupted . | . . . Allies Melted . | . . . Intel | -11 -10 -10 ------- Run | Yrd Mat Min Robot Analysis Total 3 | . 3 . Derelict Logs Recovered . | . . . Drone Launches . | . . . Drone Recoveries . | . . . Exploration | -11 -10 -10 ------------- Run | Yrd Mat Min Turns Passed 1862 | 69 1514 279 Spaces Moved 948 | 39 732 177 Core 3 | 3 . . Treads 458 | 36 422 . Legs . | . . . Wheels 487 | . 310 177 Hover . | . . . Flight . | . . . Fastest Speed 50 | 50 115 115 Average Speed 137 | 151 141 115 Slowest Speed 240 | 160 240 115 Overloaded Moves . | . . . Propulsion Burnouts . | . . . Robots Hopped . | . . . Cave-ins Triggered . | . . . Exploration Rate (%) 49 | 3 92 54 Regions Visited 2 Branch Regions 1 Pre-discovered Areas 2 | . 2 . Known Exits Taken . | . . . Unknown Exits Taken 2 | 1 1 . Scrap Searched 1 | . . 1 Spaces Dug . | . . . Terrain Destroyed 5 | . . 5 Melee . | . . . Projectile 5 | . . 5 AOE . | . . . Terrain Rammed . | . . . Walls Destroyed . | . . . Machines Disabled . | . . . Actions | -11 -10 -10 --------- Run | Yrd Mat Min Total 1330 | 46 1069 215 Wait 166 | . 161 5 Move 946 | 38 731 177 Hop . | . . . Pick Up 17 | 2 11 4 Fast Attach 13 | 6 6 1 Attach 2 | . 1 1 Detach 1 | . . 1 Swap 11 | . 11 . Drop 5 | . 1 4 Fire 97 | . 75 22 Melee . | . . . Ram . | . . . Kick . | . . . Crush . | . . . Escape Stasis . | . . . Rewire . | . . . Trap 72 | . 72 . Miscellaneous . | . . . Route ------- -11/Scrapyard -10/Materials (discovered 5 exits: [*Mat x3] / [*Min x2]) -10/Mines (discovered 1 exit: [*Mat]) History --------- Turn | Location | Event 4 | -11/Scrapyard | Discovered new exit (range 15) 70 | -11/Scrapyard | Entered Materials 310 | -10/Materials | Discovered new exit (range 11) 318 | -10/Materials | Build established: Mutant 530 | -10/Materials | Discovered new exit (range 15) 737 | -10/Materials | Discovered new exit (range 10) 980 | -10/Materials | Discovered new exit (range 8) 1147 | -10/Materials | Lost 3 parts (1p1n1w) 1204 | -10/Materials | Discovered new exit (range 16) 1235 | -10/Materials | Core integrity fell below 50% 1267 | -10/Materials | Central database locked down 1397 | -10/Materials | Build established: Scavenger-Mutant 1584 | -10/Materials | Entered Mines 1610 | -10/Mines | A weapon hastily lodged in a ceiling crevice suddenly fell to the ground 1734 | -10/Mines | Discovered new exit (range 10) 1802 | -10/Mines | Core integrity fell below 20% 1863 | -10/Mines | Destroyed by G-34 Mercenary with Small Laser Last Messages --------------- 01699_ K-01 Serf collects debris. 01699_ Acquired 27 matter. 01703_ Dropped Sml. Laser. 01703_ Acquired Sml. Laser. 01704_ K-01 Serf collects debris. 01704_ Dropped Sml. Laser. 01704_ Acquired Particle Gun. 01708_ K-01 Serf collects debris. 01734_ EXIT=FOUND 01803_ Core Extractor disabled. 01803_ S-10 Pest destroyed. 01803_ Ion Engine destroyed. 01806_ S-10 Pest destroyed. 01806_ Switching to secondary target: S-10 Pest. 01812_ S-10 Pest destroyed. 01825_ U-05 Engineer builds a Wall. 01853_ Com. Wheel destroyed. 01859_ U-05 Engineer builds a Wall. 01859_ Targeting Computer destroyed. 01862_ G-47 Trooper destroyed. Map ----- +----------------------------------------------------+ | ??????????????## |### ### #?? | | ???????????##### !%%* #?? | | ???????????# % #?? | | ???????????# ### * ##### ##?? | | ???????????????# ##???# #??? | | ???????????????# ##????# #??? | | ???????????????# ###?????# #??? | | ???????????????# ######?????# #### | | ???????????????# #??????????# # | | ???????????????# #??????????# ## # | | ???????????????# #??????????# #? # | | ?????????#####?# ???????????# ## # | | ????????## ### ??????????## | | ????????# ####??????????# | | ????????# #?????????????# | | ????????# #??????????????# | | ????????# #???####????????# | | ???????## #??## ##?????#### | | ??????## #### ##???## ## | | ??????# ## ##??# | | ??????# ##?# | | ??????# """ ### | | ??????# "" ## | | ??????# "" u ## ## | | ??????## %% ## #? | | ???????###@ ##%###### ### #? | | ?????????# #"=###??# #####?? #? | | ?????????# u *#????# #????? #? | | ?????????#= ####???# #???? #? | | ?????????#% ;#?????# #??? #? | | ?????????# g##?????## #??? ? | | ????????? ???????## ##??? ? | | ????????# """????????# ####???? | | ????????? """????????# #???????? | | ????????? """ ???????# ???????? ? | | ????????? ? ???????# ??????????? | | ????????? ???????????###??????????? | | ????????? ????????????????????????? | | ?????????#????????????????????????? | | ??????????????????????????????????? | | ??????????????????????????????????? | | | | | | | | | | | | | | | | | | | +----------------------------------------------------+ Best States ------------- Heat Dissipation 25 Energy Generation 10 Energy Capacity 250 Matter Stores 300 Matter Capacity 300 Sight Range 16 Terrain Scan Range 14 Terrain Scan Density 10 Evasion (%) 40 Targeting Accuracy 5 Recoil Reduction 2 Item Schematics ----------------- None Robot Schematics ------------------ None Fabricated ------------ Nothing Alien Tech Used ----------------- None Achievements -------------- None Challenges ------------ None Game ------ Seed DisruptionPointMace Manual? 0 Play Time 00:11:36 Cumulative 163.4 hours Start 2024.11.04 @ 00:00:50 End 2024.11.04 @ 00:23:52 Sessions 3 Manual Loads 0 Difficulty Rogue Special Mode None Game No. 105 Rogue 69 Adventurer 36 Explorer 0 Win Type - Total 3 Types 2/0/0/1/0/0/0/0/0 Lore% 55 Gallery% 64 Achievement% 56 Wizard Run 0 Options --------- Layout 1 ASCII 0 Keyboard 0 Movement Numpad Keybinds 0 Fullscreen 1 Font 48/Smallcaps Map View 50x35 Zoom Use 0% Tactical HUD 1 Map Filters NONE Filters NONE Steam 1 RUN: 236c8a4c-f33c-4f1c-9bbe-b67822d83fb4